Cogmind - Beta 17 @@@ ROGUE MODE // 2026.07.26 @ 19:46:01 Player: OBLIQUE Result: Core destroyed Performance ------------- Evolutions (1) 500 Regions Visited (3) 600 Robots Destroyed (35) 175 Value Destroyed (810) 810 Prototype IDs (12) 240 Alien Tech Used (0) 0 Bonus (0) 0 TOTAL SCORE: 2325 Bonus ------- None Cogmind --------- Core Integrity 0/400 Matter 300/300 Energy 231/250 System Corruption 0% Temperature Cool (0) Movement Core (50) Location -9/Mines Parts ------- > --- POWER (1) -------- (None) > --- PROPULSION (2) --- (None) > --- UTILITY (3) ------ Medium Battery > --- WEAPON (3) ------- (None) > --- INVENTORY (5) ---- Compact Wheel Small Storage Unit Grenade Launcher Peak State ------------ > --- POWER ------------ Light Nuclear Core > --- PROPULSION ------- Wheel Armored Wheel > --- UTILITY ---------- Improved Heat Sink Medium Battery Shield Generator > --- WEAPON ----------- Heavy EM Pulse Gun Heavy EM Pulse Gun Advanced Beam Cannon > --- INVENTORY -------- Compact Wheel Small Storage Unit Heavy EM Pulse Gun Particle Cannon Grenade Launcher [Rating: 19] Favorites ----------- Power Light Nuclear Core Engine Light Ion Engine Power Core Light Nuclear Core Propulsion Wheel Wheel Wheel Utility Improved Heat Sink Device Improved Heat Sink Storage Medium Battery Protection Light Armor Plating Weapon Heavy EM Pulse Gun Energy Gun Heavy EM Pulse Gun Energy Cannon Particle Cannon Launcher Grenade Launcher Build | -11 -10 -9 -9 ------- Run | Yrd Mat Mat Min Slots Evolved 2 | . . 2 . Power . | . . . . Propulsion . | . . . . Utility 1 | . . 1 . Weapon 1 | . . 1 . Parts Attached 26 | 5 8 11 2 Power 2 | 1 . 1 . Engine 1 | 1 . . . Core 1 | . . 1 . Reactor . | . . . . Propulsion 5 | 2 2 1 . Treads . | . . . . Leg . | . . . . Wheel 5 | 2 2 1 . Hover . | . . . . Flight . | . . . . Utility 6 | . 4 2 . Device 2 | . 1 1 . Storage 3 | . 2 1 . Processor . | . . . . Hackware . | . . . . Protection 1 | . 1 . . Artifact . | . . . . Weapon 13 | 2 2 7 2 Energy Gun 9 | 2 1 6 . Energy Cannon 2 | . . 1 1 Ballistic Gun . | . . . . Ballistic Cannon . | . . . . Launcher 2 | . 1 . 1 Special Weapon . | . . . . Impact Weapon . | . . . . Slashing Weapon . | . . . . Piercing Weapon . | . . . . Special Melee Weapon . | . . . . Unidentified Prototypes 1 | . . 1 . Parts Lost 10 | . . . 10 Power 1 | . . . 1 Propulsion 2 | . . . 2 Utility 2 | . . . 2 Weapon 5 | . . . 5 Highest Loss Streak 10 | . . . 10 To Critical Strikes . | . . . . Average Backups 5 | 1 6 5 4 Power . | . 1 . . Propulsion 1 | . 2 1 1 Utility . | . 1 1 1 Weapon 2 | . 2 2 2 Tool/Special . | . . . . Unused Backups 8 | . 8 . . Power 1 | . 1 . . Propulsion 2 | . 2 . . Utility 1 | . 1 . . Weapon 4 | . 4 . . Tool/Special . | . . . . Average Slot Usage (%) 92 | . 94 99 71 Engine 6 | . 14 1 . Core 5 | . . 9 7 Wheel 23 | . 28 22 15 Device 16 | . 10 21 15 Storage 10 | . 10 11 11 Protection 1 | . 2 . . Energy Gun 23 | . 16 31 15 Launcher 5 | . 11 1 6 Peak Build Rating 19 | 5 10 19 18 Average Rating 12 | 3 8 16 12 On Entrance 8 | . 5 10 17 Avg Prop Armor Cover (%) . | . . . . Naked Turns . | . . . . Heaviest Build 19 | 6 14 19 19 Greatest Support 26 | 26 26 22 22 Greatest Overweight (x) . | . . . . Average Overweight (x) . | . . . . Largest Inventory Capacity 8 | 5 8 8 5 Average Capacity 5 | 5 7 5 5 Most Carried 8 | 2 8 7 5 Average Carried 5 | 1 6 5 4 Final Capacity 8 | 5 8 5 5 Final Carried 7 | 2 7 5 3 Class Distribution -------------------- 54% | Tank 45% | Mutant Dominant Class ---------------- Mutant | -10/Materials Tank | -9/Materials Tank | -9/Mines Resources | -11 -10 -9 -9 ----------- Run | Yrd Mat Mat Min Matter Collected 680 | 202 148 293 37 Remotely . | . . . . Salvage Created 919 | . 228 691 . Parts 68 | . 21 47 . Haulers Intercepted 2 | . . 2 . Recyclers Shooed 3 | . 1 1 1 Parts Field Recycled . | . . . . Retrieved Matter . | . . . . Parts Self-Destructed . | . . . . Prevented . | . . . . Parts Restored . | . . . . Kills | -11 -10 -9 -9 ------- Run | Yrd Mat Mat Min Combat Hostiles Destroyed 22 | . 7 15 . Guns 6 | . . 6 . AOE 16 | . 7 9 . Classes Destroyed 9 | . 4 5 . Worker 2 | . . 2 . Builder 2 | . 1 1 . Hauler 2 | . . 2 . Recycler 2 | . 1 1 . Operator 1 | . . 1 . Watcher 4 | . 1 3 . Swarmer 7 | . . 7 . Grunt 12 | . 7 5 . Sentry 3 | . . 3 . Best Kill Streak 9 | . 8 9 . Combat Bots Only 5 | . 5 4 . Max Kills in Single Turn 4 | . 3 4 . Gunslinging . | . . . . Exploded 3 | . 2 3 . Melee . | . . . . Uniques/NPCs Destroyed . | . . . . Combat | -11 -10 -9 -9 -------- Run | Yrd Mat Mat Min Hostile Shots Fired 85 | . 13 36 36 Missed 30 | . 5 10 15 Hits 55 | . 8 26 21 Projectile 55 | . 8 26 21 AOE 27 | . . . 27 Damage Taken 1162 | . 102 244 816 Core 426 | . 24 47 355 Absorbed by Shields 142 | . . 98 44 Core Remaining (%) 95 | 100 90 . . Volleys Fired 47 | . 15 27 5 Largest 3 | . 2 3 3 Hottest 135 | . 80 135 135 Shots Fired 112 | . 24 79 9 Gun 92 | . 15 71 6 Cannon 2 | . . . 2 Launcher 18 | . 9 8 1 Special . | . . . . Kinetic . | . . . . Thermal 17 | . 15 . 2 Explosive 18 | . 9 8 1 Electromagnetic 77 | . . 71 6 Robot Hit Streak 9 | . 9 7 7 Robot Miss Streak 5 | . 1 5 1 Penetration Max . | . . . . Secondary Targets . | . . . . Shots Hit Robots 63 | . 12 44 7 Core Hits 49 | . 16 32 1 Critical Kills . | . . . . Critical Parts Destroyed . | . . . . Critical Strikes 2 | . . 2 . Corrupt 2 | . . 2 . Melee Attacks . | . . . . Impact . | . . . . Slashing . | . . . . Piercing . | . . . . Sneak Attacks . | . . . . Combat Hostiles . | . . . . Follow-up Attacks . | . . . . Damage Inflicted 2262 | . 677 1468 117 Guns 858 | . 89 704 65 Cannons 40 | . . . 40 Explosions 1352 | . 588 764 . Melee . | . . . . Ramming 12 | . . . 12 Kinetic . | . . . . Thermal 551 | . 89 422 40 Explosive 930 | . 588 342 . Electromagnetic 769 | . . 704 65 Impact . | . . . . Slashing . | . . . . Piercing . | . . . . Highest Corruption . | . . . . Average Corruption . | . . . . Corruption Purged . | . . . . Corruption Blocked . | . . . . Overload Shots . | . . . . Overflow Damage 89 | . . 89 . Projectiles . | . . . . Explosions 89 | . . 89 . Melee . | . . . . Knockbacks . | . . . . Impact . | . . . . Kinetic . | . . . . Secondary . | . . . . Self-Inflicted Damage 9 | . . 4 5 Shots 1 | . . 1 . Rammed 4 | . . . 4 Targets Rammed 4 | . . . 4 Kicked . | . . . . Crushed . | . . . . Highest Temperature 151 | . 151 72 30 Average Temperature 34 | . 64 23 13 Received Heat Transfer 121 | . 57 64 . Siege Activations . | . . . . Martial Activations . | . . . . Shielding Activations . | . . . . Robots Disrupted . | . . . . Combat Hostiles . | . . . . Robots Corrupted 1 | . . 1 . Combat Hostiles . | . . . . Parts Fried 5 | . . 5 . Impact Corruptions . | . . . . Robots Melted . | . . . . Combat Hostiles . | . . . . Parts Melted . | . . . . Heat Transferred 633 | . 259 300 74 Parts Sabotaged . | . . . . Parts Stolen . | . . . . Parts Stripped . | . . . . Power Chain Reactions 2 | . . 2 . Alert | -11 -10 -9 -9 ------- Run | Yrd Mat Mat Min Maximum Alert Level 1 | . . 1 . Low Security (%) 86 | 100 100 69 100 Level 1 13 | . . 30 . Level 2 . | . . . . Level 3 . | . . . . Level 4 . | . . . . Level 5 . | . . . . High Security . | . . . . Max Security . | . . . . Peak Influence 273 | . 163 273 77 Initial 77 | . . 53 77 Average 106 | . 106 144 32 Influence Increases 877 | . 314 558 5 Destroy 0b10 Robot/C 440 | . 140 300 . Destroy 0b10 Robot/NC 65 | . 15 50 . Destroy Leader 112 | . 32 80 . Successful Hack 51 | . 30 21 . Disable Machine 75 | . 30 45 . Destroy Structure 119 | . 67 47 5 Lose Combat Pursuer 15 | . . 15 . Influence Decreases 877 | . 185 488 204 Entered New Map 198 | . . 76 122 Time Decay 507 | . 185 262 60 Lost Part 22 | . . . 22 Purge Threat 150 | . . 150 . Squads Dispatched 3 | . 1 2 . Investigation . | . . . . Extermination . | . . . . Reinforcement 3 | . 1 2 . Assault . | . . . . Garrison . | . . . . Intercept . | . . . . Searches Triggered . | . . . . Construction Impeded 1 | . . 1 . Haulers Reinforced . | . . . . Active Scanning Responses . | . . . . Cargo Convoy Interrupts . | . . . . Stealth | -11 -10 -9 -9 --------- Run | Yrd Mat Mat Min Distress Signals 5 | . 1 4 . Communications Jammed . | . . . . Distress Signals . | . . . . Times Spotted 36 | . 11 23 2 Peak Tracking Total 5 | . 4 5 1 Tactical Retreats 3 | . . 1 2 Traps | -11 -10 -9 -9 ------- Run | Yrd Mat Mat Min Traps Triggered 1 | . 1 . . Indirectly . | . . . . Trap Hack Attempts . | . . . . Triggered . | . . . . Disarmed . | . . . . Reprogrammed . | . . . . Reused . | . . . . Traps Extracted . | . . . . Installed . | . . . . Triggered . | . . . . Machines | -11 -10 -9 -9 ---------- Run | Yrd Mat Mat Min Machines Disabled 5 | . 2 3 . Max in Single Turn 2 | . 2 2 . Machines Repaired . | . . . . Machines Dismantled . | . . . . Machines Sabotaged . | . . . . Overloaded Fab Kills . | . . . . Hacking | -11 -10 -9 -9 --------- Run | Yrd Mat Mat Min Machines Accessed 12 | . 7 5 . Terminals 12 | . 7 5 . Fabricators . | . . . . Repair Stations . | . . . . Recycling Units . | . . . . Scanalyzers . | . . . . Garrison Access . | . . . . Total Hacks 53 | . 27 26 . Successful 25 | . 12 13 . Failed 27 | . 14 13 . Catastrophic 4 | . 3 1 . Database Lockouts 1 | . 1 . . Manual 28 | . 18 10 . Terminals 53 | . 27 26 . Fabricators . | . . . . Repair Stations . | . . . . Recycling Units . | . . . . Scanalyzers . | . . . . Garrison Access . | . . . . Terminal Hacks 17 | . 7 10 . Robot Analysis 1 | . 1 . . Prototype ID Bank 6 | . 3 3 . Branch Access Points 1 | . . 1 . Terminal Index 1 | . 1 . . Alert Level 2 | . 1 1 . Unreport Threat 1 | . . 1 . Locate Traps 1 | . . 1 . Patrol Status 2 | . 1 1 . Zone Layout 2 | . . 2 . Fabricator Hacks . | . . . . Repair Station Hacks . | . . . . Recycling Unit Hacks . | . . . . Scanalyzer . | . . . . Garrison Access Hacks . | . . . . Unauthorized Hacks 8 | . 5 3 . Terminals 8 | . 5 3 . Botnet 8 | . 5 3 . Fabricators . | . . . . Repair Stations . | . . . . Recycling Units . | . . . . Scanalyzers . | . . . . Garrison Access . | . . . . Data Cores Recovered . | . . . . Used . | . . . . Hacking Detections 12 | . 7 5 . Full Trace Events . | . . . . Feedback Events . | . . . . Feedback Blocked . | . . . . Robot Schematics Acquired . | . . . . Robots Built . | . . . . Authchips . | . . . . Time . | . . . . Total Robot Build Rating . | . . . . Part Schematics Acquired . | . . . . Parts Built . | . . . . Authchips . | . . . . Time . | . . . . Total Part Build Rating . | . . . . Part Studies Acquired . | . . . . Parts Repaired . | . . . . Time . | . . . . Parts Recycled . | . . . . Recycled Matter . | . . . . Retrieved Matter . | . . . . Retrieved Components . | . . . . Parts Scanalyzed . | . . . . Part Schematics Acquired . | . . . . Parts Damaged . | . . . . Bothacking | -11 -10 -9 -9 ------------ Run | Yrd Mat Mat Min Used RIF Installer . | . . . . Robots Hacked . | . . . . Non-combat . | . . . . Combat . | . . . . Robot Hacks Applied . | . . . . Relay Couplers Released . | . . . . Fabnet Peak Effective % . | . . . . Robots Rewired . | . . . . Allies Hacked . | . . . . Hacks Repelled . | . . . . Allies | -11 -10 -9 -9 -------- Run | Yrd Mat Mat Min Total Allies . | . . . . Largest Group . | . . . . Highest-Rated Group . | . . . . Highest-Rated Ally . | . . . . Total Orders . | . . . . Ally Attacks . | . . . . Total Damage . | . . . . Kills . | . . . . Allies Corrupted . | . . . . Allies Melted . | . . . . Intel | -11 -10 -9 -9 ------- Run | Yrd Mat Mat Min Active Infowar (turns) . | . . . . Robot Analysis Total 1 | . 1 . . Derelict Logs Recovered 2 | . . . 2 Drone Launches . | . . . . Drone Recoveries . | . . . . Exploration | -11 -10 -9 -9 ------------- Run | Yrd Mat Mat Min Turns Passed 1269 | 49 450 560 210 Spaces Moved 1099 | 45 434 455 165 Core 73 | 2 . . 71 Treads . | . . . . Legs . | . . . . Wheels 1026 | 43 434 455 94 Hover . | . . . . Flight . | . . . . Fastest Speed 50 | 50 80 80 50 Average Speed 80 | 88 82 82 70 Slowest Speed 100 | 100 90 85 90 Overloaded Moves . | . . . . Propulsion Burnouts . | . . . . Robots Hopped . | . . . . Potential Cave-ins . | . . . . Cave-ins Triggered . | . . . . Exploration Rate (%) 41 | 3 84 45 35 Regions Visited 3 Branch Regions 1 Pre-discovered Areas 1 | . . . 1 Known Exits Taken 1 | . . 1 . Unknown Exits Taken 2 | 1 1 . . Scrap Searched . | . . . . Spaces Dug . | . . . . Terrain Destroyed 145 | . 83 57 5 Melee . | . . . . Projectile . | . . . . AOE 145 | . 83 57 5 Terrain Rammed . | . . . . Walls Destroyed . | . . . . Machines Disabled . | . . . . Actions | -11 -10 -9 -9 --------- Run | Yrd Mat Mat Min Total 1384 | 51 504 577 252 Wait 166 | . 20 72 74 Move 1096 | 44 433 454 165 Hop . | . . . . Pick Up 17 | 2 14 1 . Fast Attach 11 | 5 4 2 . Attach 4 | . . 2 2 Detach . | . . . . Swap 19 | . 5 12 2 Drop 21 | . 13 7 1 Fire 47 | . 15 27 5 Melee . | . . . . Ram 3 | . . . 3 Kick . | . . . . Crush . | . . . . Escape Stasis . | . . . . Rewire . | . . . . Trap . | . . . . Miscellaneous . | . . . . Route ------- -11/Scrapyard -10/Materials (discovered 3 exits: *Mat x2 / [*Min]) -9/Materials (discovered 2 exits: [*Mat] / *Min) -9/Mines (discovered 1 exit: [*Mat]) History --------- Turn | Location | Event 17 | -11/Scrapyard | Discovered new exit (range 16) 50 | -11/Scrapyard | Entered Materials 158 | -10/Materials | Discovered new exit (range 10) 167 | -10/Materials | Discovered new exit (range 16) 299 | -10/Materials | Central database locked down 308 | -10/Materials | Build established: Mutant 484 | -10/Materials | Discovered new exit (range 14) 500 | -10/Materials | Entered another Materials area 500 | -9/Materials | Evolved 2 slots: Utility x1, Weapon x1 755 | -9/Materials | Discovered new exit (range 16) 800 | -9/Materials | Build established: Tank 891 | -9/Materials | Identified exit to Mines 927 | -9/Materials | Discovered new exit (range 16) 1060 | -9/Materials | Entered Mines 1061 | -9/Mines | YI-UF0 nonchalantly dropped a Grenade Launcher on the ground 1098 | -9/Mines | Learned location of Zion (-6) 1216 | -9/Mines | Core integrity fell below 50% 1244 | -9/Mines | Lost 10 parts (1p2n2u5w) 1253 | -9/Mines | Core integrity fell below 20% 1254 | -9/Mines | Discovered new exit (range 16) 1270 | -9/Mines | Core destroyed Last Messages --------------- 01201_ The unstable cave ceiling collapses. 01205_ Particle Cannon destroyed. 01206_ The unstable cave ceiling collapses. 01207_ Hvy. EM Pulse Gun destroyed. 01207_ Wheel destroyed. 01207_ Shield Generator destroyed. 01208_ The unstable cave ceiling collapses. 01211_ U-05 Engineer lays Concrete. 01212_ The unstable cave ceiling collapses. 01212_ U-05 Engineer lays Concrete. 01213_ U-05 Engineer builds a Wall. 01213_ Arm. Wheel destroyed. 01213_ Hvy. EM Pulse Gun destroyed. 01213_ Imp. Heat Sink destroyed. 01216_ The unstable cave ceiling collapses. 01254_ EXIT=FOUND 01264_ Slammed into R-06 Scavenger. 01269_ Acquired derelict log, extracted data. Data stored: Factory entrances (x1). 01270_ Slammed into R-06 Scavenger. Map ----- +----------------------------------------------------+ | ?????????????????????????????????????????????????? | | ?????????????????????????????????????????????????? | | ?????????????????????????????????????????????????? | | ?????????????????????????????????????????????????? | | ?????????????????????????????????????????????????? | | ?????????????????????????????????????????????????? | | ?????????????????????????????????????????????????? | | ?????????????????????????????????????????????????? | | ?????????????????????????????????????????????????? | | ?????????????????????????????????????????????????? | | ?????????????????????????????????????????????????? | | ?????????????????????????????????????????????????? | | ?????????????????????????????????????????????????? | | ?????????????????????????????????????????????????? | | ?????????????????????????????????????????????????? | | ?????????????????????????????????????????????????? | | ?????????????????????????????????????????????????? | | ?????????????????????????????????????????????????? | | ?????????????????????????????????????????????????? | | ?????????????????????????????????????????????????? | | ????????????????????????###??????????????????????? | | ???????????????????????? #??????????????????????? | | ????????????????????????# #??????????????????????? | | ????????????????????????# #??????????????????????? | | ????????????????????????#r#??????????????????????? | | ????????????????????????#@#??????????????????????? | | ????????????????????????# #??????????????????????? | | ????????????????????????#%#??????????????????????? | | ????????????????????????# #??????????????????????? | | ????????????????????????# #??????????????????????? | | ????????????????????????#%#??????????????????????? | | ????????????????????????# #######????????????????? | | ????????????????????????# % #????????????????? | | ????????????????????????####### #?????????????#### | | ??????????????????????????????# #????????????## # | | ??????????????????????????????# #???????????## | | ??????????????????????????????# #?######???## | | ??????????????????????????????# #? # ##?## | | ?????????????????????????????## ## #?# | | ???????????????????????????### # #?# | | ???????????????? #### ### | | ???????????????? < ## | | ???????????????? | | ???????????????? ##### ! | | ????????????????? ?????# #### | | ?????????????????? ???????# * | | ???????????????????????????# = ## | | ???????????????????????????# ###### ##? | | ??????????????????????????# ## #????### ##?? | | ??????????????????????????###### ?###### #??? | +----------------------------------------------------+ Best States ------------- Heat Dissipation 42 Energy Generation 14 Energy Capacity 310 Matter Stores 300 Matter Capacity 300 Sight Range 16 Terrain Scan Density 10 Armor Coverage 150 Evasion (%) 50 Item Schematics ----------------- None Robot Schematics ------------------ None Fabricated ------------ Nothing Repaired ---------- Nothing Studied --------- None Alien Tech Used ----------------- None Achievements -------------- None Challenges ------------ None Game ------ Seed ShockboltAntigravRailcannon Manual? 0 Play Time 00:19:12 Cumulative 191.2 hours Start 2026.07.26 @ 19:29:00 End 2026.07.26 @ 19:46:01 Sessions 1 Manual Loads 0 Difficulty Rogue Special Mode None Game No. 108 Rogue 108 Adventurer 0 Explorer 0 Win Type - Total 4 Types 4/0/0/0/0/0/0/0/0/0 Lore% 73 Gallery% 63 Achievement% 54 Wizard Run 0 Options --------- Layout 1 ASCII 0 Keyboard 0 Movement Numpad Keybinds 0 Fullscreen 1 Font 24/Smallcaps Map View 50x35 Zoom Use 0% Tactical HUD 1 Map Filters NONE Filters NONE Steam 1 RUN: a2b2b958-562b-499f-b232-3e3ad9a37ad7